[Event "Early-Titled-Tuesday-Blitz-May-07-2024"]
[Site "Chess.com"]
[Date "2024.05.07"]
[Round "1"]
[White "chess_blitz00"]
[Black "Chesmc"]
[Result "1-0"]
[WhiteElo "2560"]
[BlackElo "2085"]
[TimeControl "180+1"]
[EndTime "8:08:00 PDT"]
[Termination "chess_blitz00 won by checkmate"]

1. Nf3 {[%clk 0:02:57.7]} 1... d5 {[%clk 0:02:58.6]} 2. c4 {[%clk 0:02:56.6]}
2... c6 {[%clk 0:02:55.7]} 3. b3 {[%clk 0:02:56.1]} 3... Nf6 {[%clk 0:02:52.9]}
4. g3 {[%clk 0:02:55.7]} 4... Bf5 {[%clk 0:02:51.5]} 5. Bg2 {[%clk 0:02:55.4]}
5... e6 {[%clk 0:02:51.9]} 6. O-O {[%clk 0:02:55.4]} 6... Bd6 {[%clk 0:02:50.8]}
7. Bb2 {[%clk 0:02:53.1]} 7... Nbd7 {[%clk 0:02:50.3]} 8. d3 {[%clk 0:02:48.5]}
8... h6 {[%clk 0:02:42.6]} 9. Re1 {[%clk 0:02:45.1]} 9... Bh7 {[%clk 0:02:39.6]}
10. Nc3 {[%clk 0:02:33]} 10... O-O {[%clk 0:02:34.6]} 11. e4 {[%clk 0:02:30.4]}
11... dxe4 {[%clk 0:02:24.7]} 12. dxe4 {[%clk 0:02:23.7]} 12... Ne5 {[%clk
0:02:14.8]} 13. Qe2 {[%clk 0:02:13.4]} 13... Nxf3+ {[%clk 0:02:05.3]} 14. Bxf3
{[%clk 0:02:11.4]} 14... e5 {[%clk 0:02:00.2]} 15. Red1 {[%clk 0:02:07.4]} 15...
Qe7 {[%clk 0:01:58.3]} 16. Rd3 {[%clk 0:01:57.6]} 16... Rad8 {[%clk 0:01:55.5]}
17. Rad1 {[%clk 0:01:57.7]} 17... Bc7 {[%clk 0:01:53.8]} 18. Na4 {[%clk
0:01:47.9]} 18... Rxd3 {[%clk 0:01:50.1]} 19. Rxd3 {[%clk 0:01:44]} 19... Rd8
{[%clk 0:01:45.7]} 20. c5 {[%clk 0:01:36.6]} 20... Rxd3 {[%clk 0:01:27]} 21.
Qxd3 {[%clk 0:01:37.5]} 21... Qd7 {[%clk 0:01:24.1]} 22. Qxd7 {[%clk 0:01:12.4]}
22... Nxd7 {[%clk 0:01:21.2]} 23. b4 {[%clk 0:01:10]} 23... f6 {[%clk
0:01:11.5]} 24. Bg4 {[%clk 0:01:06.1]} 24... Nf8 {[%clk 0:00:50.8]} 25. f3
{[%clk 0:01:02.8]} 25... b6 {[%clk 0:00:46.6]} 26. Bc8 {[%clk 0:01:01.8]} 26...
Bg6 {[%clk 0:00:43.5]} 27. Bc3 {[%clk 0:00:52]} 27... Be8 {[%clk 0:00:40.6]} 28.
Bb7 {[%clk 0:00:51.5]} 28... Ne6 {[%clk 0:00:38]} 29. Bc8 {[%clk 0:00:42.3]}
29... Kf7 {[%clk 0:00:34.9]} 30. Kf2 {[%clk 0:00:37]} 30... Ke7 {[%clk
0:00:31.7]} 31. Bb7 {[%clk 0:00:14.5]} 31... Kd7 {[%clk 0:00:28.9]} 32. Bd2
{[%clk 0:00:13.3]} 32... Nd8 {[%clk 0:00:28.8]} 33. Ba6 {[%clk 0:00:12.5]} 33...
b5 {[%clk 0:00:29.1]} 34. Nc3 {[%clk 0:00:09.4]} 34... Ne6 {[%clk 0:00:29.4]}
35. Be3 {[%clk 0:00:06.3]} 35... Bb8 {[%clk 0:00:29]} 36. a4 {[%clk 0:00:06.8]}
36... bxa4 {[%clk 0:00:22.4]} 37. Nxa4 {[%clk 0:00:07.7]} 37... Bc7 {[%clk
0:00:20.6]} 38. Bc4 {[%clk 0:00:03.7]} 38... Bf7 {[%clk 0:00:20.5]} 39. Nc3
{[%clk 0:00:03.3]} 39... Be8 {[%clk 0:00:20.8]} 40. b5 {[%clk 0:00:03.1]} 40...
cxb5 {[%clk 0:00:20.2]} 41. Bxb5+ {[%clk 0:00:03.5]} 41... Kd8 {[%clk
0:00:20.8]} 42. c6 {[%clk 0:00:03.9]} 42... Bd6 {[%clk 0:00:19.1]} 43. Bxa7
{[%clk 0:00:03.2]} 43... Nd4 {[%clk 0:00:18.3]} 44. Bxd4 {[%clk 0:00:03.1]}
44... exd4 {[%clk 0:00:19.2]} 45. Nd5 {[%clk 0:00:04]} 45... Bf7 {[%clk
0:00:18.3]} 46. Ke2 {[%clk 0:00:04.1]} 46... h5 {[%clk 0:00:18]} 47. Kd3 {[%clk
0:00:04.5]} 47... Be5 {[%clk 0:00:17.9]} 48. f4 {[%clk 0:00:05]} 48... Bb8
{[%clk 0:00:17]} 49. Kxd4 {[%clk 0:00:05.3]} 49... Ba7+ {[%clk 0:00:17.9]} 50.
Kc4 {[%clk 0:00:05.5]} 50... h4 {[%clk 0:00:18.8]} 51. gxh4 {[%clk 0:00:05.9]}
51... Bg6 {[%clk 0:00:18.7]} 52. c7+ {[%clk 0:00:06.1]} 52... Kc8 {[%clk
0:00:18.2]} 53. Ba6+ {[%clk 0:00:06.8]} 53... Kd7 {[%clk 0:00:15]} 54. c8=Q+
{[%clk 0:00:07.7]} 54... Kd6 {[%clk 0:00:15.9]} 55. Qc7+ {[%clk 0:00:08.3]}
55... Ke6 {[%clk 0:00:14.6]} 56. Qe7# {[%clk 0:00:09.2]} 1-0

[Event "Early-Titled-Tuesday-Blitz-May-07-2024"]
[Site "Chess.com"]
[Date "2024.05.07"]
[Round "1"]
[White "Juicy_Fork"]
[Black "Casablanca"]
[Result "0-1"]
[WhiteElo "2418"]
[BlackElo "2730"]
[TimeControl "180+1"]
[EndTime "8:08:01 PDT"]
[Termination "Casablanca won on time"]

1. e4 {[%clk 0:02:58.2]} 1... c5 {[%clk 0:02:59.6]} 2. Nf3 {[%clk 0:02:58.3]}
2... d6 {[%clk 0:02:59.8]} 3. d4 {[%clk 0:02:58.9]} 3... cxd4 {[%clk 0:03:00.7]}
4. Nxd4 {[%clk 0:02:59.8]} 4... Nf6 {[%clk 0:03:01.3]} 5. Nc3 {[%clk 0:03:00.5]}
5... g6 {[%clk 0:03:01.8]} 6. Be3 {[%clk 0:02:59.3]} 6... Bg7 {[%clk 0:03:02.2]}
7. f3 {[%clk 0:02:59.2]} 7... O-O {[%clk 0:03:02.9]} 8. Qd2 {[%clk 0:02:59.9]}
8... Nc6 {[%clk 0:03:03.6]} 9. O-O-O {[%clk 0:03:00.6]} 9... d5 {[%clk
0:03:04.1]} 10. exd5 {[%clk 0:02:59.7]} 10... Nxd5 {[%clk 0:03:05]} 11. Nxc6
{[%clk 0:02:59.9]} 11... bxc6 {[%clk 0:03:05.9]} 12. Bd4 {[%clk 0:03:00.5]}
12... Bxd4 {[%clk 0:03:06.7]} 13. Qxd4 {[%clk 0:03:00.6]} 13... Qb6 {[%clk
0:03:07.3]} 14. Na4 {[%clk 0:02:26.8]} 14... Qc7 {[%clk 0:03:06.8]} 15. Bc4
{[%clk 0:02:19.6]} 15... Rd8 {[%clk 0:03:06.4]} 16. Nc5 {[%clk 0:02:14.3]} 16...
Bf5 {[%clk 0:03:06.4]} 17. Bb3 {[%clk 0:02:11.3]} 17... Nf4 {[%clk 0:03:06.6]}
18. Qf2 {[%clk 0:02:03.7]} 18... Rxd1+ {[%clk 0:03:07]} 19. Rxd1 {[%clk
0:02:04.6]} 19... Rd8 {[%clk 0:03:07.3]} 20. Re1 {[%clk 0:02:02]} 20... h5
{[%clk 0:03:03.3]} 21. g3 {[%clk 0:02:01.7]} 21... Nd5 {[%clk 0:02:59.5]} 22. a3
{[%clk 0:02:01.2]} 22... Qb6 {[%clk 0:02:58.3]} 23. Rd1 {[%clk 0:01:19.7]} 23...
Rd6 {[%clk 0:02:51.8]} 24. Rf1 {[%clk 0:00:30.3]} 24... Nf6 {[%clk 0:02:17.8]}
25. Ne4 {[%clk 0:00:20.6]} 25... Bxe4 {[%clk 0:01:49.3]} 26. fxe4 {[%clk
0:00:19.3]} 26... e5 {[%clk 0:01:38.7]} 27. Qe1 {[%clk 0:00:11.3]} 27... Kg7
{[%clk 0:01:37.9]} 28. h3 {[%clk 0:00:04.1]} 28... Qd4 {[%clk 0:01:37.8]} 29. g4
{[%clk 0:00:03.7]} 29... hxg4 {[%clk 0:01:36.7]} 30. hxg4 {[%clk 0:00:04.6]}
30... Rd7 {[%clk 0:01:37.4]} 31. g5 {[%clk 0:00:03.3]} 31... Nxe4 {[%clk
0:01:35.8]} 32. Kb1 {[%clk 0:00:02.6]} 32... Nd2+ {[%clk 0:01:35.7]} 33. Ka2
{[%clk 0:00:03.1]} 33... Nxf1 {[%clk 0:01:35.9]} 34. Qxf1 {[%clk 0:00:02.9]}
34... e4 {[%clk 0:01:36]} 35. Qh3 {[%clk 0:00:02.5]} 35... Kf8 {[%clk
0:01:31.4]} 36. Qh6+ {[%clk 0:00:01.9]} 36... Ke8 {[%clk 0:01:27.9]} 37. c3
{[%clk 0:00:01.9]} 37... Qe5 {[%clk 0:01:27.4]} 38. Qh7 {[%clk 0:00:01.8]} 38...
Re7 {[%clk 0:01:26.4]} 39. Qg8+ {[%clk 0:00:01.8]} 39... Kd7 {[%clk 0:01:27.1]}
40. Qa8 {[%clk 0:00:02.6]} 40... Qc7 {[%clk 0:01:27.1]} 41. Qf8 {[%clk
0:00:02.5]} 41... Kd6 {[%clk 0:01:25.9]} 42. Qg7 {[%clk 0:00:01.3]} 42... c5
{[%clk 0:01:17.7]} 43. Qf6+ {[%clk 0:00:01.3]} 43... Kd7 {[%clk 0:01:18.5]} 44.
Ba4+ {[%clk 0:00:01.4]} 44... Kc8 {[%clk 0:01:12]} 45. Bb5 {[%clk 0:00:02]}
45... Kb8 {[%clk 0:00:44.3]} 46. Ba6 {[%clk 0:00:01.5]} 46... Rd7 {[%clk
0:00:42.2]} 47. Qh8+ {[%clk 0:00:01.5]} 47... Rd8 {[%clk 0:00:42.5]} 48. Qf6
{[%clk 0:00:01.8]} 48... Qd6 {[%clk 0:00:40.8]} 49. Qf1 {[%clk 0:00:01.7]} 49...
e3 {[%clk 0:00:33]} 50. Bc4 {[%clk 0:00:01.8]} 50... Rd7 {[%clk 0:00:30.5]} 51.
Qh3 {[%clk 0:00:01.8]} 51... Re7 {[%clk 0:00:29.8]} 52. Qh8+ {[%clk 0:00:02]}
52... Kb7 {[%clk 0:00:27.8]} 53. Qh1+ {[%clk 0:00:02.2]} 53... Kc7 {[%clk
0:00:26.2]} 54. Qa8 {[%clk 0:00:02.1]} 54... Qb6 {[%clk 0:00:23.3]} 55. Qf8
{[%clk 0:00:02.2]} 55... Kd7 {[%clk 0:00:21]} 56. Bb3 {[%clk 0:00:01.7]} 56...
e2 {[%clk 0:00:20.4]} 57. Ba4+ {[%clk 0:00:02.1]} 57... Kd6 {[%clk 0:00:19.9]}
0-1

[Event "Early-Titled-Tuesday-Blitz-May-07-2024"]
[Site "Chess.com"]
[Date "2024.05.07"]
[Round "1"]
[White "aljado"]
[Black "Ural_bogatyr"]
[Result "0-1"]
[WhiteElo "2177"]
[BlackElo "2574"]
[TimeControl "180+1"]
[EndTime "8:08:02 PDT"]
[Termination "Ural_bogatyr won on time"]

1. e4 {[%clk 0:02:59.9]} 1... e5 {[%clk 0:02:56.4]} 2. Nf3 {[%clk 0:02:58.8]}
2... Nc6 {[%clk 0:02:55.3]} 3. Bb5 {[%clk 0:02:58.3]} 3... a6 {[%clk 0:02:53.7]}
4. Ba4 {[%clk 0:02:57.8]} 4... Nf6 {[%clk 0:02:53]} 5. O-O {[%clk 0:02:57.6]}
5... Nxe4 {[%clk 0:02:52.2]} 6. d4 {[%clk 0:02:55.7]} 6... b5 {[%clk 0:02:52.3]}
7. Bb3 {[%clk 0:02:53.1]} 7... d5 {[%clk 0:02:51.3]} 8. dxe5 {[%clk 0:02:50]}
8... Be6 {[%clk 0:02:49]} 9. c3 {[%clk 0:02:49.6]} 9... Bc5 {[%clk 0:02:47.2]}
10. Nbd2 {[%clk 0:02:46.2]} 10... O-O {[%clk 0:02:38.4]} 11. Qe2 {[%clk
0:02:37.2]} 11... Nxd2 {[%clk 0:01:20.9]} 12. Bxd2 {[%clk 0:02:35.3]} 12... Ne7
{[%clk 0:01:21]} 13. a4 {[%clk 0:02:26.2]} 13... c6 {[%clk 0:01:18.5]} 14. axb5
{[%clk 0:02:24.5]} 14... axb5 {[%clk 0:01:18.6]} 15. Rxa8 {[%clk 0:02:23.5]}
15... Qxa8 {[%clk 0:01:19.5]} 16. Bc2 {[%clk 0:02:20.9]} 16... Bf5 {[%clk
0:01:13.6]} 17. Bxf5 {[%clk 0:02:14.7]} 17... Nxf5 {[%clk 0:01:13.2]} 18. e6
{[%clk 0:02:07]} 18... fxe6 {[%clk 0:01:12]} 19. Qxe6+ {[%clk 0:02:05.9]} 19...
Kh8 {[%clk 0:01:12.1]} 20. Ne5 {[%clk 0:02:01.5]} 20... Nd6 {[%clk 0:00:54.6]}
21. Nd7 {[%clk 0:01:38.2]} 21... Re8 {[%clk 0:00:53.8]} 22. Qg4 {[%clk
0:01:35.4]} 22... Qc8 {[%clk 0:00:43.9]} 23. Qh3 {[%clk 0:01:27.8]} 23... Ne4
{[%clk 0:00:31.4]} 24. Be1 {[%clk 0:01:08.6]} 24... Ba7 {[%clk 0:00:24.5]} 25.
Qg4 {[%clk 0:00:54.7]} 25... Qc7 {[%clk 0:00:16.3]} 26. Kh1 {[%clk 0:00:24.1]}
26... Rd8 {[%clk 0:00:16.1]} 27. f3 {[%clk 0:00:23.1]} 27... Nd6 {[%clk
0:00:14.7]} 28. Ne5 {[%clk 0:00:20.8]} 28... Re8 {[%clk 0:00:14.1]} 29. Qg5
{[%clk 0:00:16.6]} 29... Qe7 {[%clk 0:00:13.4]} 30. Qxe7 {[%clk 0:00:15.4]}
30... Rxe7 {[%clk 0:00:14.3]} 31. Nxc6 {[%clk 0:00:15.2]} 31... Rc7 {[%clk
0:00:14.5]} 32. Nxa7 {[%clk 0:00:15.2]} 32... Rxa7 {[%clk 0:00:15.4]} 33. b4
{[%clk 0:00:14]} 33... Ra2 {[%clk 0:00:14.3]} 34. g3 {[%clk 0:00:12.9]} 34...
Kg8 {[%clk 0:00:13.9]} 35. Rf2 {[%clk 0:00:12.2]} 35... Ra1 {[%clk 0:00:13]} 36.
Re2 {[%clk 0:00:11.6]} 36... Kf7 {[%clk 0:00:12.4]} 37. Kg2 {[%clk 0:00:12]}
37... Nc4 {[%clk 0:00:12]} 38. Kf2 {[%clk 0:00:11.4]} 38... Rc1 {[%clk
0:00:11.7]} 39. f4 {[%clk 0:00:07.5]} 39... h5 {[%clk 0:00:10.1]} 40. Kf3 {[%clk
0:00:06.8]} 40... g6 {[%clk 0:00:08]} 41. h3 {[%clk 0:00:06.8]} 41... Nd6 {[%clk
0:00:08]} 42. g4 {[%clk 0:00:06.5]} 42... Ne4 {[%clk 0:00:07.8]} 43. gxh5 {[%clk
0:00:05.5]} 43... gxh5 {[%clk 0:00:08.7]} 44. Re3 {[%clk 0:00:04.4]} 44... Kf6
{[%clk 0:00:08]} 45. Bh4+ {[%clk 0:00:03.7]} 45... Ke6 {[%clk 0:00:07]} 46. Be1
{[%clk 0:00:03.2]} 46... Kf5 {[%clk 0:00:06.5]} 47. Ke2 {[%clk 0:00:01.4]} 47...
Ra1 {[%clk 0:00:05]} 48. Rd3 {[%clk 0:00:00.6]} 48... Ke6 {[%clk 0:00:04.1]} 0-1

[Event "Early-Titled-Tuesday-Blitz-May-07-2024"]
[Site "Chess.com"]
[Date "2024.05.07"]
[Round "1"]
[White "patzer-reloaded"]
[Black "Mikhail_Bryakin"]
[Result "0-1"]
[WhiteElo "2493"]
[BlackElo "2883"]
[TimeControl "180+1"]
[EndTime "8:08:03 PDT"]
[Termination "Mikhail_Bryakin won by resignation"]

1. Nf3 {[%clk 0:03:00.9]} 1... Nf6 {[%clk 0:02:52.3]} 2. d3 {[%clk 0:02:59.5]}
2... g6 {[%clk 0:02:46.2]} 3. g3 {[%clk 0:02:59.4]} 3... Bg7 {[%clk 0:02:46.4]}
4. Bg2 {[%clk 0:03:00.1]} 4... O-O {[%clk 0:02:46.8]} 5. O-O {[%clk 0:03:00.9]}
5... c5 {[%clk 0:02:46.4]} 6. c4 {[%clk 0:03:00.9]} 6... Nc6 {[%clk 0:02:43.3]}
7. Nc3 {[%clk 0:03:00.8]} 7... d6 {[%clk 0:02:41.4]} 8. Qd2 {[%clk 0:03:00.5]}
8... Rb8 {[%clk 0:02:34.7]} 9. b3 {[%clk 0:02:59.9]} 9... a6 {[%clk 0:02:34.8]}
10. Bb2 {[%clk 0:03:00.1]} 10... b5 {[%clk 0:02:33.6]} 11. e3 {[%clk 0:02:55.4]}
11... Qa5 {[%clk 0:02:27.6]} 12. Rfd1 {[%clk 0:02:54]} 12... Bb7 {[%clk
0:02:25.1]} 13. Nd5 {[%clk 0:02:15]} 13... Qxd2 {[%clk 0:02:21.9]} 14. Nxf6+
{[%clk 0:01:59.2]} 14... Bxf6 {[%clk 0:02:20.6]} 15. Rxd2 {[%clk 0:02:00.1]}
15... Bxb2 {[%clk 0:02:17.8]} 16. Rxb2 {[%clk 0:02:01]} 16... Rfc8 {[%clk
0:01:59.2]} 17. Rd1 {[%clk 0:01:39.7]} 17... Ba8 {[%clk 0:01:52.9]} 18. Rbd2
{[%clk 0:01:33.9]} 18... a5 {[%clk 0:01:41.3]} 19. cxb5 {[%clk 0:01:25.5]} 19...
Rxb5 {[%clk 0:01:42.2]} 20. d4 {[%clk 0:01:24.5]} 20... Nb4 {[%clk 0:01:35.5]}
21. a3 {[%clk 0:00:39.4]} 21... Nd5 {[%clk 0:01:29.9]} 22. dxc5 {[%clk
0:00:37.7]} 22... Rbxc5 {[%clk 0:01:22.4]} 23. Nd4 {[%clk 0:00:27.2]} 23... Nc3
{[%clk 0:01:21.9]} 24. Re1 {[%clk 0:00:26.4]} 24... Be4 {[%clk 0:01:20.4]} 25.
b4 {[%clk 0:00:22]} 25... axb4 {[%clk 0:01:20.2]} 26. axb4 {[%clk 0:00:22.9]}
26... Rc4 {[%clk 0:01:21.1]} 27. b5 {[%clk 0:00:22.5]} 27... Kf8 {[%clk
0:01:04.5]} 28. Rb2 {[%clk 0:00:19.6]} 28... e5 {[%clk 0:00:59.5]} 29. Bxe4
{[%clk 0:00:15.5]} 29... Nxe4 {[%clk 0:00:56.1]} 30. Nc6 {[%clk 0:00:15.1]}
30... Nc3 {[%clk 0:00:51.3]} 31. Ra1 {[%clk 0:00:11]} 31... Rc5 {[%clk
0:00:45.4]} 32. Na7 {[%clk 0:00:09]} 32... Rb8 {[%clk 0:00:44.9]} 33. b6 {[%clk
0:00:09.9]} 33... Ke7 {[%clk 0:00:36.2]} 34. Kg2 {[%clk 0:00:09.9]} 34... e4
{[%clk 0:00:35.6]} 35. g4 {[%clk 0:00:08.1]} 35... Kd7 {[%clk 0:00:33.7]} 36.
Kg3 {[%clk 0:00:07.7]} 36... Nd5 {[%clk 0:00:32.3]} 37. Ra4 {[%clk 0:00:06.7]}
37... Rxb6 {[%clk 0:00:27.6]} 38. Rxb6 {[%clk 0:00:06]} 38... Nxb6 {[%clk
0:00:28.5]} 39. Rxe4 {[%clk 0:00:05.9]} 39... Ra5 {[%clk 0:00:29]} 40. Rf4
{[%clk 0:00:06]} 40... f5 {[%clk 0:00:20.4]} 41. gxf5 {[%clk 0:00:06.9]} 41...
Rxa7 {[%clk 0:00:20.6]} 42. fxg6 {[%clk 0:00:06.3]} 42... Ke6 {[%clk 0:00:21.3]}
43. gxh7 {[%clk 0:00:05.5]} 43... Rxh7 {[%clk 0:00:22.2]} 44. h4 {[%clk
0:00:05.9]} 44... Nd5 {[%clk 0:00:22.2]} 45. Rg4 {[%clk 0:00:05.6]} 45... Nf6
{[%clk 0:00:22.3]} 46. Rg5 {[%clk 0:00:05.3]} 46... Ne4+ {[%clk 0:00:22.3]} 47.
Kg4 {[%clk 0:00:06]} 47... Nxg5 {[%clk 0:00:21.8]} 48. hxg5 {[%clk 0:00:06.9]}
48... Kf7 {[%clk 0:00:20.2]} 49. f4 {[%clk 0:00:07.8]} 49... Rh1 {[%clk
0:00:20.1]} 50. f5 {[%clk 0:00:07.2]} 50... Re1 {[%clk 0:00:19.8]} 51. Kf4
{[%clk 0:00:07.2]} 51... Ra1 {[%clk 0:00:20.5]} 52. e4 {[%clk 0:00:06]} 52...
Ra4 {[%clk 0:00:20.3]} 53. Ke3 {[%clk 0:00:05.5]} 53... Kg7 {[%clk 0:00:20.7]}
54. Kf4 {[%clk 0:00:05.4]} 54... d5 {[%clk 0:00:20.5]} 55. f6+ {[%clk 0:00:03]}
55... Kg6 {[%clk 0:00:20.5]} 56. Ke5 {[%clk 0:00:03.6]} 56... dxe4 {[%clk
0:00:20.8]} 57. Ke6 {[%clk 0:00:03.6]} 57... e3 {[%clk 0:00:21]} 58. f7 {[%clk
0:00:04.5]} 58... Rf4 {[%clk 0:00:21]} 0-1

[Event "Early-Titled-Tuesday-Blitz-May-07-2024"]
[Site "Chess.com"]
[Date "2024.05.07"]
[Round "1"]
[White "PositionalPanther"]
[Black "Hoshka"]
[Result "1-0"]
[WhiteElo "2559"]
[BlackElo "2055"]
[TimeControl "180+1"]
[EndTime "8:08:05 PDT"]
[Termination "PositionalPanther won on time"]

1. Nf3 {[%clk 0:02:59.4]} 1... Nf6 {[%clk 0:02:59.2]} 2. g3 {[%clk 0:03:00.3]}
2... d5 {[%clk 0:02:58.7]} 3. Bg2 {[%clk 0:03:01.2]} 3... e6 {[%clk 0:02:57.3]}
4. O-O {[%clk 0:03:02.1]} 4... Be7 {[%clk 0:02:57.1]} 5. c4 {[%clk 0:03:02.4]}
5... O-O {[%clk 0:02:54.9]} 6. b3 {[%clk 0:03:02.7]} 6... c5 {[%clk 0:02:51.9]}
7. Bb2 {[%clk 0:03:02.2]} 7... Nc6 {[%clk 0:02:51.6]} 8. cxd5 {[%clk 0:03:01.3]}
8... Nxd5 {[%clk 0:02:51]} 9. Nc3 {[%clk 0:03:00.6]} 9... Bf6 {[%clk 0:02:48]}
10. Qc2 {[%clk 0:02:56.6]} 10... Ncb4 {[%clk 0:02:43.2]} 11. Qb1 {[%clk
0:02:55.1]} 11... Nxc3 {[%clk 0:02:39.6]} 12. dxc3 {[%clk 0:02:52.7]} 12... Nd5
{[%clk 0:02:38.8]} 13. Rd1 {[%clk 0:02:52.1]} 13... Qc7 {[%clk 0:02:37.3]} 14.
Qc2 {[%clk 0:02:45.1]} 14... Bd7 {[%clk 0:02:34.3]} 15. e4 {[%clk 0:02:42.7]}
15... Nb6 {[%clk 0:02:28.2]} 16. e5 {[%clk 0:02:40.6]} 16... Be7 {[%clk
0:02:26.4]} 17. c4 {[%clk 0:02:38.8]} 17... Bc6 {[%clk 0:02:24.2]} 18. h4 {[%clk
0:02:38.5]} 18... h6 {[%clk 0:02:19]} 19. Rd2 {[%clk 0:02:31.9]} 19... Rad8
{[%clk 0:02:17]} 20. Rad1 {[%clk 0:02:32]} 20... Rxd2 {[%clk 0:02:15.9]} 21.
Rxd2 {[%clk 0:02:32.9]} 21... Rd8 {[%clk 0:02:12.6]} 22. Bc3 {[%clk 0:02:26.8]}
22... Rxd2 {[%clk 0:02:09.3]} 23. Qxd2 {[%clk 0:02:27.7]} 23... Nd7 {[%clk
0:02:05.6]} 24. Qf4 {[%clk 0:02:23.8]} 24... b6 {[%clk 0:01:56.8]} 25. Nd2
{[%clk 0:01:50.1]} 25... Bxg2 {[%clk 0:01:55.9]} 26. Kxg2 {[%clk 0:01:51]} 26...
Qc6+ {[%clk 0:01:44.2]} 27. f3 {[%clk 0:01:49.8]} 27... Nf8 {[%clk 0:01:42.6]}
28. Ne4 {[%clk 0:01:47.5]} 28... Qd7 {[%clk 0:01:34.7]} 29. Qd2 {[%clk
0:01:46.1]} 29... Qxd2+ {[%clk 0:01:30]} 30. Bxd2 {[%clk 0:01:47]} 30... Nd7
{[%clk 0:01:29.1]} 31. f4 {[%clk 0:01:46.6]} 31... h5 {[%clk 0:01:24.2]} 32. Kf3
{[%clk 0:01:45.5]} 32... Kf8 {[%clk 0:01:19.2]} 33. Nc3 {[%clk 0:01:45.4]} 33...
a6 {[%clk 0:01:11.7]} 34. Nd1 {[%clk 0:01:38.2]} 34... Ke8 {[%clk 0:01:10.1]}
35. Ne3 {[%clk 0:01:38.3]} 35... g6 {[%clk 0:01:08]} 36. Nd1 {[%clk 0:01:32.5]}
36... Kd8 {[%clk 0:01:07.8]} 37. Ke4 {[%clk 0:01:31.8]} 37... Kc7 {[%clk
0:01:07.3]} 38. Be3 {[%clk 0:01:31.6]} 38... Kc6 {[%clk 0:01:06.8]} 39. Kd3
{[%clk 0:01:31.3]} 39... b5 {[%clk 0:01:06.5]} 40. cxb5+ {[%clk 0:01:27.4]}
40... axb5 {[%clk 0:01:06.4]} 41. a4 {[%clk 0:01:24.2]} 41... bxa4 {[%clk
0:01:05.9]} 42. bxa4 {[%clk 0:01:25.1]} 42... Nb6 {[%clk 0:01:04.3]} 43. Nc3
{[%clk 0:01:20.5]} 43... Nd5 {[%clk 0:00:57.9]} 44. Nb5 {[%clk 0:01:01.2]} 44...
Nb6 {[%clk 0:00:56]} 45. Nc3 {[%clk 0:00:59]} 45... Nd5 {[%clk 0:00:53.5]} 46.
Ne4 {[%clk 0:00:47.6]} 46... Nb6 {[%clk 0:00:44.6]} 47. a5 {[%clk 0:00:46.4]}
47... Nd7 {[%clk 0:00:35.8]} 48. Kc4 {[%clk 0:00:43]} 48... Bd8 {[%clk
0:00:31.2]} 49. Bd2 {[%clk 0:00:35.8]} 49... Be7 {[%clk 0:00:22]} 50. Bc3 {[%clk
0:00:34.6]} 50... Nb8 {[%clk 0:00:17.6]} 51. Bd2 {[%clk 0:00:31.6]} 51... Na6
{[%clk 0:00:17.4]} 52. Be3 {[%clk 0:00:31.8]} 52... Bf8 {[%clk 0:00:16.3]} 53.
Ng5 {[%clk 0:00:31.3]} 53... Nc7 {[%clk 0:00:09]} 54. Nxf7 {[%clk 0:00:29.3]}
54... Nd5 {[%clk 0:00:08.6]} 55. Bd2 {[%clk 0:00:28.4]} 55... Be7 {[%clk
0:00:05.5]} 56. Nh8 {[%clk 0:00:26.7]} 1-0